bitfinex/quotes_SOLUSD_20250818
["timestamp","ask_amount","ask_price","bid_price","bid_amount"]
[1755488487827,0.67,183.04,183.01,23.44836181]
[1755488488249,0.67,183.03,183.0,23.44836181]
[1755488488427,0.67,183.02,183.0,23.44836181]
[1755488488755,5.46298825,183.05,182.95,0.14216157]
[1755488488756,0.67,183.01,182.95,0.14216157]
[1755488488942,5.46448087,183.0,182.97,23.44836181]
[1755488489349,6.13448087,183.0,182.97,23.44836181]
[1755488489548,6.13448087,183.0,182.95,23.44836181]
[1755488489549,0.67,182.99,182.95,23.44836181]
[1755488489854,0.67,182.99,182.94,15.10621557]
[1755488490063,0.67,182.98,182.95,23.44836181]
[1755488490271,0.67,182.98,182.9,23.44836181]
[1755488490554,0.67,182.98,182.91,23.44836181]
[1755488490842,5.46537683,182.97,182.91,23.44836181]
[1755488491018,0.67,182.96,182.91,23.44836181]
[1755488491212,0.67,182.96,182.87,15.10621557]
[1755488491417,0.67,182.96,182.91,23.44836181]
[1755488491614,0.67,182.95,182.91,23.44836181]
[1755488492026,5.46537683,182.97,182.92,23.44836181]
[1755488492234,5.46537683,182.97,182.93,23.44836181]
[1755488492422,5.46537683,182.97,182.95,23.44836181]
[1755488492848,6.13537683,182.97,182.94,23.44836181]
[1755488493037,0.67,182.96,182.93,23.44836181]
[1755488493353,0.67,182.96,182.88,0.71]
[1755488493524,0.67,182.96,182.9,23.44836181]
[1755488494638,0.67,182.96,182.89,23.44836181]
[1755488495045,19.13091007,182.95,182.89,23.44836181]
[1755488495362,19.13091007,182.95,182.88,23.44836181]
[1755488495363,0.67,182.94,182.88,23.44836181]
[1755488496254,0.67,182.94,182.89,23.47836181]
[1755488496435,0.67,182.93,182.89,0.03]
[1755488497236,5.46687076,182.92,182.89,23.47836181]
[1755488497647,5.46687076,182.92,182.89,0.03]
[1755488498062,6.13687076,182.92,182.89,0.03]
[1755488498635,5.46687076,182.92,182.89,0.03]
[1755488499348,5.46627309,182.94,182.89,0.03]
[1755488499857,0.67,182.93,182.89,0.03]
[1755488500159,43.46,182.92,182.89,0.03]
[1755488500531,0.67,182.91,182.89,0.03]
[1755488501432,5.46746856,182.9,182.89,0.03]
[1755488502248,6.13746856,182.9,182.89,0.03]
[1755488502766,5.46657191,182.93,182.89,16.39292412]
[1755488502956,5.46448087,183.0,182.92,15.65292412]
[1755488503256,43.42,182.99,182.97,15.65292412]
[1755488503461,5.46507815,182.98,182.96,15.65292412]
[1755488503632,5.46507815,182.98,182.93,0.71]
[1755488503835,5.46507815,182.98,182.91,0.14216157]
[1755488504043,5.46507815,182.98,182.94,0.71]
[1755488504361,5.46507815,182.98,182.97,15.65292412]
[1755488504850,5.46507815,182.98,182.9,21.12043079]
[1755488504851,48.88481302,182.99,182.93,0.71]
[1755488505054,48.88481302,182.99,182.94,15.65292412]
[1755488505240,0.67,182.98,182.94,15.65292412]
[1755488505571,6.13537683,182.97,182.9,0.71]
[1755488505730,5.46537683,182.97,182.89,0.03]
[1755488505931,0.67,182.96,182.89,15.68292412]
[1755488506235,0.67,182.96,182.9,15.65292412]
[1755488507357,26.0,182.94,182.89,0.03]
[1755488507656,5.46687076,182.92,182.89,0.03]
[1755488507857,5.46687076,182.92,182.89,15.68292412]
[1755488508045,5.46687076,182.92,182.89,16.33292412]
[1755488508447,5.46687076,182.92,182.89,15.68292412]
[1755488509434,48.88657755,182.93,182.9,15.65292412]
[1755488509635,48.88657755,182.93,182.9,16.30292412]
[1755488509934,48.88657755,182.93,182.91,0.65]
[1755488510463,48.88657755,182.93,182.9,15.65292412]
[1755488510639,48.88657755,182.93,182.9,16.30292412]
[1755488511256,48.88657755,182.93,182.89,15.68292412]
[1755488511437,0.67,182.92,182.89,0.03]
[1755488511857,48.88657755,182.93,182.89,0.03]
[1755488512449,0.67,182.92,182.89,0.03]
[1755488513445,5.46716964,182.91,182.89,0.03]
[1755488516861,14.33545144,182.95,182.9,15.65292412]
[1755488517170,14.33545144,182.95,182.89,0.68]
[1755488517171,43.38,182.95,182.93,15.65292412]
[1755488517754,43.38,182.95,182.92,15.65292412]
[1755488518140,5.46627309,182.94,182.92,15.65292412]
[1755488519544,5.46627309,182.94,182.89,0.03]
[1755488519870,0.67,182.93,182.89,15.68292412]
[1755488520048,0.67,182.93,182.9,15.65292412]
[1755488520252,5.46627309,182.94,182.89,15.68292412]
[1755488520253,19.13195582,182.94,182.89,15.68292412]
[1755488520452,0.67,182.92,182.89,0.03]
[1755488520773,43.36,182.91,182.89,0.03]
[1755488520950,44.03,182.91,182.89,0.03]
[1755488521466,43.36,182.91,182.89,0.03]
[1755488521675,48.82746642,182.91,182.89,0.03]
[1755488523618,49.49746642,182.91,182.89,0.03]
[1755488523767,0.67,182.9,182.89,0.03]
[1755488525285,6.13746856,182.9,182.89,0.03]
[1755488528528,6.13746856,182.9,182.89,1e-08]
[1755488528818,10.14440097,182.9,182.87,1e-08]
[1755488529116,4.67690428,182.89,182.87,1e-08]
[1755488529414,26.0,182.88,182.85,1e-08]
[1755488529724,47.33073337,182.87,182.85,1e-08]
[1755488529942,43.32,182.86,182.85,1e-08]
[1755488530239,48.78866455,182.86,182.85,1e-08]
[1755488533402,53.47579785,182.86,182.85,1e-08]
[1755488536906,53.47579785,182.86,182.83,0.03]
[1755488536907,26.0,182.84,182.83,1e-08]
[1755488537129,73.3171333,182.84,182.83,1e-08]
[1755488537447,73.9971333,182.84,182.83,1e-08]
[1755488538114,73.99544269,182.84,182.83,1e-08]
[1755488538558,73.99462896,182.84,182.83,1e-08]
[1755488538735,78.50248762,182.84,182.83,1e-08]
[1755488539046,122.63258471,182.84,182.71,0.67]
[1755488539216,26.0,182.8,182.71,16.32292412]
[1755488539413,51.58488913,182.79,182.71,0.67]
[1755488539635,7.62488913,182.78,182.71,0.67]
[1755488539938,47.97462896,182.77,182.7,16.35292412]
[1755488540138,3.61026017,182.76,182.7,16.35292412]
[1755488540315,43.28,182.75,182.71,15.65292412]
[1755488540642,43.28,182.75,182.71,16.32292412]
[1755488540806,5.47225566,182.74,182.71,0.67]
[1755488541007,43.28,182.73,182.7,0.03]
[1755488541443,0.68,182.72,182.7,0.03]
[1755488541645,43.28,182.71,182.7,0.03]
[1755488543025,48.75315417,182.71,182.7,0.03]
[1755488543409,49.43315417,182.71,182.7,0.03]
[1755488544549,48.75315417,182.71,182.7,0.03]
[1755488544744,4.51561231,182.79,182.7,16.35292412]
[1755488544745,13.67851212,182.77,182.7,16.35292412]
[1755488544956,48.73165681,182.76,182.75,15.65292412]
[1755488545112,48.73165681,182.76,182.74,15.65292412]
[1755488545316,48.73165681,182.76,182.74,16.32292412]
[1755488545813,5.47075879,182.79,182.75,16.32292412]
[1755488546011,48.73075879,182.79,182.75,16.32292412]
[1755488549447,48.73075879,182.79,182.74,15.65292412]
[1755488549742,49.41075879,182.79,182.74,15.65292412]
[1755488550258,49.41075879,182.79,182.74,16.32292412]
[1755488550456,43.26,182.78,182.74,16.32292412]
[1755488550622,43.26,182.77,182.74,16.32292412]
[1755488550971,43.26,182.77,182.74,15.65292412]
[1755488551839,5.47165681,182.76,182.74,15.65292412]
[1755488552047,43.26,182.75,182.74,15.65292412]
[1755488552247,43.26,182.75,182.7,0.03]
[1755488552429,43.26,182.75,182.74,15.65292412]
[1755488552962,48.73195622,182.75,182.72,0.67]
[1755488553122,48.73195622,182.75,182.73,15.65292412]
[1755488553323,48.73195622,182.75,182.74,15.65292412]
[1755488553737,48.73195622,182.75,182.73,0.67]
[1755488553943,48.73195622,182.75,182.74,15.65292412]
[1755488554334,48.73195622,182.75,182.71,0.67]
[1755488554545,0.68,182.74,182.7,0.03]
[1755488554846,43.24,182.73,182.7,0.03]
[1755488555236,43.92,182.73,182.7,0.03]
[1755488556260,5.47285464,182.72,182.7,0.03]
[1755488556425,43.24,182.71,182.7,0.03]
[1755488556926,48.71285464,182.72,182.7,16.35292412]
[1755488561949,48.71285464,182.72,182.71,16.32292412]
[1755488562148,48.71285464,182.72,182.71,15.65292412]
[1755488562352,52.9877811,182.72,182.68,0.03]
[1755488562541,4.27440525,182.71,182.68,0.03]
[1755488562847,43.2,182.7,182.68,0.03]
[1755488563063,43.88,182.7,182.68,0.03]
[1755488563228,43.2,182.69,182.68,0.03]
[1755488563560,47.47526462,182.69,182.64,0.03]
[1755488563737,3.59526462,182.68,182.64,0.03]
[1755488563919,48.67435265,182.67,182.64,0.03]
[1755488564123,52.95088623,182.67,182.64,0.03]
[1755488564344,49.35435265,182.67,182.64,0.03]
[1755488564665,52.9494668,182.67,182.66,1e-08]
[1755488566032,52.9494668,182.67,182.64,1e-08]
[1755488566252,4.28279629,182.66,182.64,1e-08]
[1755488566431,69.2,182.65,182.64,1e-08]
[1755488566636,73.48279629,182.65,182.64,1e-08]
[1755488567030,77.78596389,182.65,182.64,1e-08]
[1755488567960,83.26091598,182.65,182.64,1e-08]
[1755488568145,87.25194244,182.65,182.64,1e-08]
[1755488568346,87.39410401,182.65,182.64,1e-08]
[1755488569146,87.38995927,182.65,182.64,1e-08]
[1755488570058,87.2477977,182.65,182.64,1e-08]
[1755488571435,44.22963684,182.65,182.64,1e-08]
[1755488571638,82.9246301,182.65,182.64,1e-08]
[1755488572334,5.47495209,182.65,182.64,1e-08]
[1755488572529,48.65495209,182.65,182.64,1e-08]
[1755488573041,52.9319187,182.65,182.64,1e-08]
[1755488574460,52.2419187,182.65,182.64,1e-08]
[1755488574769,48.65495209,182.65,182.64,1e-08]
[1755488575336,48.65495209,182.65,182.64,0.67000001]
[1755488575950,43.18,182.65,182.64,0.67000001]
[1755488576137,5.47405298,182.68,182.64,0.67000001]
[1755488576346,43.85,182.67,182.64,1e-08]
[1755488576538,3.59038335,182.66,182.64,1e-08]
[1755488576745,43.16,182.65,182.64,1e-08]
[1755488576966,46.75038335,182.65,182.64,1e-08]
[1755488577175,47.44038335,182.65,182.64,1e-08]
[1755488577664,46.75038335,182.65,182.64,1e-08]
[1755488578380,52.22533544,182.65,182.64,1e-08]
[1755488580058,52.91533544,182.65,182.64,1e-08]
[1755488580442,52.22533544,182.65,182.64,1e-08]
[1755488580642,9.06533544,182.65,182.64,1e-08]
[1755488580851,5.47495209,182.65,182.64,0.67000001]
[1755488581066,48.61495209,182.65,182.64,0.67000001]
[1755488581265,52.20533544,182.65,182.64,0.67000001]
[1755488581567,48.61495209,182.65,182.64,0.67000001]
[1755488581756,48.61495209,182.65,182.64,1e-08]
[1755488582268,5.47495209,182.65,182.64,1e-08]
[1755488582574,48.59495209,182.65,182.64,0.67000001]
[1755488582936,0.06,182.67,182.64,16.32292413]
[1755488583143,48.65441406,182.67,182.66,15.65292412]
[1755488583367,48.65441406,182.67,182.66,16.32292412]
[1755488583776,52.25232189,182.67,182.66,16.32292412]
[1755488584948,46.77790783,182.67,182.66,16.32292412]
[1755488585279,0.06,182.67,182.66,16.32292412]
[1755488586159,5.53435265,182.67,182.64,1e-08]
[1755488586338,43.1,182.66,182.64,1e-08]
[1755488586652,43.1,182.66,182.65,0.67]
[1755488587250,47.38804475,182.66,182.64,1e-08]
[1755488587447,0.69,182.65,182.64,1e-08]
[1755488587654,4.28718536,182.65,182.64,1e-08]
[1755488588262,3.59718536,182.65,182.64,1e-08]
[1755488588577,9.07213745,182.65,182.64,1e-08]
[1755488588751,9.76213745,182.65,182.64,1e-08]
[1755488590164,9.07213745,182.65,182.64,1e-08]
[1755488591168,9.07468249,182.65,182.64,1e-08]
[1755488592273,9.76468249,182.65,182.64,1e-08]
[1755488593498,26.0,182.62,182.57,1e-08]
[1755488593672,26.0,182.58,182.57,1e-08]
[1755488593983,72.6597304,182.58,182.57,1e-08]
[1755488594356,73.3497304,182.58,182.57,1e-08]
[1755488594554,78.82678155,182.58,182.57,1e-08]
[1755488594868,82.82744273,182.58,182.55,1e-08]
[1755488595074,4.2897304,182.57,182.55,1e-08]
[1755488595255,43.06,182.56,182.55,1e-08]
[1755488595587,47.3497304,182.56,182.55,1e-08]
[1755488596263,47.3497304,182.56,182.5,0.29721096]
[1755488596476,5.47885163,182.52,182.5,0.29721096]
[1755488596787,43.04,182.51,182.5,0.29721096]
[1755488596957,47.3497304,182.51,182.5,0.29721096]
[1755488598568,52.82888222,182.51,182.5,0.29721096]
[1755488598984,9.07888222,182.51,182.5,0.29721096]
[1755488599185,49.22915182,182.51,182.5,0.29721096]
[1755488599358,52.82888222,182.51,182.5,0.29721096]
[1755488599957,52.11888222,182.51,182.5,0.29721096]
[1755488601151,3.5997304,182.51,182.5,0.29721096]
[1755488601357,5.47765118,182.56,182.5,16.61013508]
[1755488601558,43.04,182.55,182.54,15.65292412]
[1755488601772,43.04,182.55,182.54,0.66]
[1755488601971,43.04,182.55,182.54,16.31292412]
[1755488603101,43.04,182.55,182.54,0.66]
[1755488603282,43.02,182.57,182.54,16.31292412]
[1755488604084,43.02,182.57,182.52,15.65292412]
[1755488604285,43.02,182.57,182.52,16.31292412]
[1755488604508,4.30892277,182.56,182.5,0.29721096]
[1755488604707,5.47825134,182.54,182.5,0.29721096]
[1755488604874,43.02,182.53,182.5,0.29721096]
[1755488605075,43.02,182.53,182.5,0.95721096]
[1755488605315,43.02,182.53,182.5,0.29721096]
[1755488605600,4.50089572,182.58,182.51,16.31292412]
[1755488605601,26.0,182.56,182.51,16.31292412]
[1755488605771,46.61884896,182.55,182.51,15.65292412]
[1755488605972,43.02,182.55,182.52,0.66]
[1755488609104,5.47766489,182.56,182.5,0.29721096]
[1755488609105,26.71,182.59,182.53,0.66]
[1755488609307,46.60067699,182.58,182.53,0.66]
[1755488609491,3.60067699,182.57,182.53,0.66]
[1755488609699,0.71,182.56,182.5,0.95721096]
[1755488609903,43.0,182.55,182.5,0.95721096]
[1755488610084,43.71,182.55,182.5,0.29721096]
[1755488610295,43.71,182.55,182.5,0.95721096]
[1755488610512,43.0,182.55,182.5,0.29721096]
[1755488610699,4.3104786,182.54,182.5,0.29721096]
[1755488610884,0.71,182.53,182.5,0.29721096]
[1755488611091,5.47915182,182.51,182.5,0.29721096]
[1755488611499,49.1888749,182.52,182.5,0.29721096]
[1755488611701,48.4788749,182.52,182.5,0.29721096]
[1755488612611,43.0,182.52,182.5,0.29721096]
[1755488612799,42.98,182.54,182.51,0.66]
[1755488614595,42.98,182.54,182.5,5.7764702]
[1755488614820,42.98,182.54,182.51,0.66]
[1755488615116,42.98,182.54,182.5,15.95013508]
[1755488615493,4.30783325,182.53,182.5,0.29721096]
[1755488616021,0.71,182.52,182.5,0.29721096]
[1755488616610,6.18901887,182.52,182.5,0.29721096]
[1755488616813,42.96,182.51,182.5,0.29721096]
[1755488617007,46.55783325,182.51,182.5,0.29721096]
[1755488617309,42.96,182.51,182.5,0.29721096]
[1755488618210,42.96,182.52,182.5,0.29721096]
[1755488618607,48.43907794,182.52,182.5,0.29721096]
[1755488618802,6.18907794,182.52,182.5,0.29721096]
[1755488619001,49.14907794,182.52,182.5,0.29721096]
[1755488619397,6.18907794,182.52,182.5,0.29721096]
[1755488619595,49.14907794,182.52,182.5,0.29721096]
[1755488619800,0.71,182.54,182.5,0.29721096]
[1755488620001,43.65,182.53,182.5,0.29721096]
[1755488620506,42.94,182.53,182.5,0.29721096]
[1755488621403,26.71,182.56,182.51,0.66]
[1755488621404,5.4779771,182.55,182.51,0.66]
[1755488621603,48.4179771,182.55,182.51,0.66]
[1755488621797,42.94,182.55,182.51,0.66]
[1755488621998,13.75207188,182.59,182.53,15.65292412]
[1755488621999,0.77,182.59,182.53,15.65292412]
[1755488622198,42.94,182.58,182.54,15.65292412]
[1755488622397,42.94,182.58,182.55,0.66]
[1755488622398,3.60100309,182.57,182.55,0.66]
[1755488622618,0.06,182.59,182.56,21.13054561]
[1755488622828,0.06,182.59,182.58,30.75913969]
[1755488623029,0.06,182.59,182.58,31.44900637]
[1755488623204,0.06,182.59,182.58,32.10900637]
[1755488623397,0.06,182.59,182.58,31.41913969]
[1755488623594,0.06,182.59,182.56,5.61978306]
[1755488623595,0.06,182.59,182.57,30.75913969]
[1755488624117,0.06,182.59,182.58,16.31292412]
[1755488624720,0.06,182.59,182.58,21.78997527]
[1755488624895,0.06,182.59,182.58,36.89619084]
[1755488625802,0.06,182.59,182.58,36.23619084]
[1755488626004,0.06,182.59,182.58,36.89619084]
[1755488626397,0.06,182.59,182.58,37.03835241]
[1755488627706,0.06,182.59,182.58,21.38542829]
[1755488627929,0.06,182.59,182.58,36.89619084]
[1755488628915,0.06,182.59,182.57,15.65292412]
[1755488629117,0.74,182.59,182.55,15.65292412]
[1755488629515,0.06,182.59,182.58,15.65292412]
[1755488630024,0.06,182.59,182.58,16.35292412]
[1755488630207,0.06,182.59,182.58,0.7]
[1755488630525,0.06,182.59,182.58,16.35292412]
[1755488630826,0.06,182.59,182.55,15.10621557]
[1755488631028,0.06,182.59,182.57,30.75913969]
[1755488631205,0.06,182.59,182.58,15.65292412]
[1755488633426,0.06,182.59,182.58,21.12997527]
[1755488633638,0.06,182.59,182.58,21.82997527]
[1755488633809,0.06,182.59,182.58,37.07835241]
[1755488634144,1e-08,182.63,182.61,15.24837714]
[1755488634298,4.28904929,182.74,182.64,15.10621557]
[1755488634631,0.68,182.74,182.66,30.90130126]
[1755488635016,0.68,182.74,182.66,37.07595361]
[1755488636847,9.08131852,182.74,182.64,15.65292412]
[1755488637141,0.74,182.67,182.64,15.65292412]
[1755488637325,0.06,182.67,182.66,30.75913969]
[1755488637527,0.06,182.67,182.66,30.90130126]
[1755488637919,0.06,182.67,182.66,31.60130126]
[1755488638830,0.06,182.67,182.66,37.07595361]
[1755488639535,1e-08,182.67,182.66,116.47595361]
[1755488639704,1e-08,182.71,182.7,41.10621557]
[1755488639903,0.06,182.73,182.7,41.10621557]
[1755488639904,0.06,182.73,182.71,0.14216157]
[1755488640107,0.06,182.73,182.72,32.14858672]
[1755488640336,0.68,182.81,182.77,15.65292412]
[1755488640513,0.68,182.81,182.74,42.8]
[1755488640712,0.68,182.81,182.77,36.23049713]
[1755488641308,0.68,182.81,182.77,15.65292412]
[1755488641506,0.78,182.78,182.77,15.65292412]
[1755488642136,0.78,182.78,182.73,21.12542941]
[1755488642323,0.68,182.77,182.73,15.10621557]
[1755488642638,0.68,182.77,182.73,30.75913969]
[1755488643135,0.1,182.78,182.73,36.23159927]
[1755488643450,0.1,182.78,182.71,15.10621557]
[1755488643451,0.68,182.76,182.71,15.10621557]
[1755488643688,0.68,182.76,182.67,15.10621557]
[1755488643806,0.68,182.76,182.7,5.470191]
[1755488644011,0.68,182.76,182.67,15.10621557]
[1755488644512,0.68,182.76,182.74,15.65292412]
[1755488644712,0.78,182.78,182.74,15.65292412]
[1755488644907,0.78,182.78,182.7,15.10621557]
[1755488644908,0.68,182.77,182.71,0.14216157]
[1755488645133,0.68,182.77,182.73,15.65292412]
[1755488645453,0.1,182.78,182.74,15.65292412]
[1755488645637,0.68,182.77,182.74,15.65292412]
[1755488645950,0.1,182.78,182.76,15.65292412]
[1755488646248,0.1,182.78,182.73,1.24725551]
[1755488646535,0.1,182.78,182.77,15.65292412]
[1755488648428,0.1,182.78,182.76,5.47160501]
[1755488648629,0.1,182.78,182.77,15.65292412]
[1755488651750,0.1,182.78,182.77,21.12428156]
[1755488652147,0.1,182.78,182.77,36.23049713]
[1755488652643,0.1,182.78,182.77,36.93049713]
[1755488655166,0.1,182.78,182.77,37.0726587]
[1755488655972,0.1,182.78,182.77,39.2646197]
[1755488656461,0.1,182.78,182.77,81.9646197]
[1755488657052,0.1,182.78,182.77,161.3646197]
[1755488657841,0.1,182.78,182.77,81.9646197]
[1755488660256,0.1,182.78,182.77,81.2646197]
[1755488661147,0.1,182.78,182.77,81.9346197]
[1755488663471,0.1,182.78,182.77,161.3346197]
[1755488663978,0.1,182.78,182.77,81.2646197]
[1755488665086,0.1,182.78,182.77,96.69817657]
[1755488665389,0.8,182.78,182.77,17.84488512]
[1755488665562,6.2710581,182.78,182.77,2.191961]
[1755488665747,6.2710581,182.78,182.75,15.10621557]
[1755488665946,0.7,182.77,182.76,30.75913969]
[1755488666972,0.7,182.77,182.76,15.65292412]
[1755488667403,9.75958517,182.77,182.73,0.03]
[1755488667544,3.5870913,182.76,182.73,0.03]
[1755488667855,3.5870913,182.75,182.73,0.03]
[1755488668059,3.5870913,182.74,182.73,0.03]
[1755488668483,4.2870913,182.74,182.73,0.03]
[1755488670076,9.75934696,182.74,182.73,0.03]
[1755488671348,3.5870913,182.74,182.73,0.03]
[1755488671681,3.5870913,182.74,182.73,15.68292412]
[1755488671846,3.5870913,182.74,182.73,0.03]
[1755488672048,9.75934696,182.74,182.73,0.03]
[1755488675267,23.43998611,182.74,182.69,0.03]
[1755488675466,8.78699315,182.73,182.69,0.03]
[1755488675662,3.5870913,182.72,182.69,0.03]
[1755488675981,5.47345374,182.7,182.69,0.03]
[1755488676165,9.06054504,182.7,182.69,0.03]
[1755488676364,9.76054504,182.7,182.69,0.03]
[1755488680005,3.5870913,182.7,182.69,16.35292412]
[1755488680291,3.60766896,182.72,182.69,15.68292412]
[1755488680462,0.7,182.74,182.7,15.65292412]
[1755488680659,42.58,182.76,182.7,15.65292412]
[1755488680660,4.3085436,182.73,182.7,15.65292412]
[1755488680894,3.6085436,182.72,182.7,15.65292412]
[1755488681063,6.17195622,182.75,182.71,15.65292412]
[1755488681258,4.3100244,182.74,182.71,15.65292412]
[1755488681461,3.6100244,182.73,182.71,15.65292412]
[1755488681800,0.7,182.74,182.71,15.65292412]
[1755488682095,3.60996756,182.73,182.69,0.7]
[1755488682292,3.60996756,182.74,182.71,15.65292412]
[1755488682499,3.60996756,182.73,182.71,15.65292412]
[1755488682792,5.47255513,182.73,182.71,15.65292412]
[1755488683090,9.78252269,182.73,182.7,15.65292412]
[1755488683305,6.17255513,182.73,182.7,15.65292412]
[1755488683665,3.60839361,182.72,182.7,15.65292412]
[1755488684096,9.08148609,182.72,182.7,15.65292412]
[1755488684262,5.47309248,182.72,182.7,15.65292412]
[1755488684468,3.60839361,182.74,182.7,15.65292412]
[1755488684663,9.08098063,182.73,182.71,15.65292412]
[1755488685008,4.30839361,182.72,182.69,0.03]
[1755488685180,3.60839361,182.71,182.69,0.03]
[1755488685690,4.30839361,182.7,182.69,0.03]
[1755488685985,0.7,182.7,182.69,0.03]
[1755488686199,48.73345374,182.7,182.69,0.03]
[1755488686394,52.34184735,182.7,182.69,0.03]
[1755488686799,48.03345374,182.7,182.69,0.03]
[1755488687001,5.47195622,182.75,182.69,16.38292412]
[1755488687176,46.14568231,182.74,182.71,15.65292412]
[1755488687376,3.60568231,182.73,182.71,15.65292412]
[1755488687598,3.60568231,182.73,182.7,15.65292412]
[1755488688403,5.47285464,182.72,182.7,15.65292412]
[1755488688602,3.60568231,182.73,182.7,16.35292412]
[1755488688898,5.47266041,182.73,182.7,15.65292412]
[1755488689075,5.47266041,182.73,182.71,15.65292412]
[1755488689468,9.07866782,182.73,182.7,15.65292412]
[1755488690580,9.07866782,182.73,182.7,16.35292412]
[1755488691180,5.47266041,182.73,182.7,15.65292412]
[1755488692175,5.47266041,182.73,182.7,0.7]
[1755488692374,5.47266041,182.73,182.71,15.65292412]
[1755488693892,5.47266041,182.73,182.7,16.35292412]
[1755488695100,5.47266041,182.73,182.7,15.65292412]
[1755488695101,6.19266041,182.73,182.7,15.65292412]
[1755488695312,5.47266041,182.73,182.7,15.65292412]
[1755488695611,5.47266041,182.73,182.71,15.65292412]
[1755488695996,48.01227873,182.74,182.71,15.65292412]
[1755488696189,48.01227873,182.74,182.72,16.35292412]
[1755488696386,48.01227873,182.74,182.72,10.38207236]
[1755488696581,42.54,182.74,182.73,9.68207236]
[1755488696782,5.53160488,182.77,182.73,25.48828793]
[1755488697011,0.06,182.77,182.76,9.68207236]
[1755488697483,0.06,182.77,182.76,10.38207236]
[1755488698087,0.06,182.77,182.76,9.68207236]
[1755488698299,0.06,182.77,182.76,30.77416217]
[1755488700007,0.06,182.77,182.76,15.10621557]
[1755488700717,0.78,182.77,182.68,80.1]
[1755488701012,4.39111205,182.77,182.71,15.6679466]
[1755488701224,0.72,182.76,182.69,0.03]
[1755488701516,42.48,182.75,182.69,15.13621557]
[1755488701815,5.47225566,182.74,182.69,30.80416217]
[1755488701979,6.19225566,182.74,182.69,31.50416217]
[1755488702309,3.61150442,182.74,182.71,15.10621557]
[1755488702508,47.95196728,182.75,182.71,30.77416217]
[1755488702713,47.95196728,182.75,182.71,31.47416217]
[1755488702889,3.61185274,182.74,182.71,15.80621557]
[1755488703220,47.95196728,182.75,182.71,15.10621557]
[1755488703525,48.67196728,182.75,182.72,15.10621557]
[1755488703812,48.67196728,182.75,182.71,15.10621557]
[1755488704020,48.67196728,182.75,182.7,0.14216157]
[1755488704193,9.08437865,182.74,182.71,15.10621557]
[1755488704524,9.80437865,182.74,182.71,15.10621557]
[1755488705925,9.80437865,182.74,182.71,30.77416217]
[1755488706911,9.80437865,182.74,182.71,15.10621557]
[1755488707523,30.33211211,182.73,182.69,0.03]
[1755488707718,3.61211211,182.72,182.69,0.03]
[1755488707920,46.05211211,182.71,182.69,0.03]
[1755488708112,3.61211211,182.7,182.69,0.03]
[1755488708427,4.33211211,182.7,182.69,0.03]
[1755488708799,9.80556585,182.7,182.69,0.03]
[1755488709443,46.03211211,182.7,182.69,0.03]
[1755488709608,42.42,182.7,182.69,0.03]
[1755488709929,46.03420635,182.7,182.69,0.03]
[1755488710627,3.61420635,182.7,182.69,31.50416217]
[1755488710837,4.33420635,182.7,182.69,0.03]
[1755488711139,4.33420635,182.7,182.67,0.03]
[1755488711303,23.67379755,182.71,182.67,0.03]
[1755488711304,46.75420635,182.69,182.67,0.03]
[1755488711506,3.61420635,182.68,182.67,0.03]
[1755488711704,4.33420635,182.68,182.67,0.03]
[1755488712015,3.61420635,182.68,182.67,0.03]
[1755488712804,9.08825933,182.68,182.67,0.03]
[1755488713429,9.80825933,182.68,182.67,0.03]
[1755488714933,9.08825933,182.68,182.67,0.03]
[1755488715910,9.80825933,182.68,182.67,0.03]
[1755488717838,9.80825933,182.68,182.67,1e-08]
[1755488718010,9.80825933,182.68,182.54,80.32]
[1755488718011,26.0,182.65,182.54,80.32]
[1755488718338,46.67420635,182.64,182.56,16.460454]
[1755488718509,4.29420635,182.63,182.56,15.10621557]
[1755488718712,8.81086079,182.62,182.55,15.10621557]
[1755488718915,46.67420635,182.61,182.54,0.2]